bitfinex/quotes_BTCUSD_20260308
["timestamp","ask_amount","ask_price","bid_price","bid_amount"]
[1772983469288,0.0759437,67211.0,67204.0,0.14757682]
[1772983469511,0.0759437,67211.0,67203.0,0.07440144]
[1772983469711,0.0759437,67211.0,67204.0,0.14759631]
[1772983469926,0.0759437,67211.0,67202.0,0.07440193]
[1772983470130,0.0759437,67211.0,67203.0,0.14759631]
[1772983470337,0.0759437,67211.0,67202.0,0.07440193]
[1772983470338,0.0759437,67211.0,67204.0,0.14759631]
[1772983470569,0.0759437,67211.0,67202.0,0.07440193]
[1772983470570,0.07438727,67216.0,67203.0,0.0295383]
[1772983470738,0.07438727,67216.0,67207.0,0.0295383]
[1772983470739,0.07450653,67216.0,67207.0,0.0295383]
[1772983474824,0.07450653,67216.0,67207.0,0.0297383]
[1772983475063,0.07450653,67216.0,67207.0,0.10413514]
[1772983475265,0.07450653,67216.0,67207.0,0.0297383]
[1772983476584,0.00011017,67214.0,67205.0,0.11419148]
[1772983476787,0.00011017,67214.0,67201.0,0.0744035]
[1772983477232,0.13053225,67215.0,67201.0,0.10429544]
[1772983477233,0.00148,67215.0,67201.0,0.10429544]
[1772983477457,0.00148,67215.0,67202.0,0.02989194]
[1772983479333,0.07438926,67214.0,67203.0,0.07440144]
[1772983479533,0.07438926,67214.0,67204.0,0.03000121]
[1772983480129,0.07438926,67214.0,67203.0,0.07440144]
[1772983480876,0.07438926,67214.0,67204.0,0.03019987]
[1772983481435,0.07438926,67214.0,67206.0,0.03019987]
[1772983482655,0.07438926,67214.0,67207.0,0.14810463]
[1772983482862,0.07438926,67214.0,67208.0,0.14810463]
[1772983482863,0.07423926,67214.0,67208.0,0.14810463]
[1772983483076,0.07423926,67214.0,67206.0,0.03019987]
[1772983483077,0.07423926,67214.0,67209.0,0.14810463]
[1772983483255,0.07423926,67214.0,67210.0,0.14810463]
[1772983483464,0.07423926,67214.0,67206.0,0.03019987]
[1772983483670,0.07423926,67214.0,67207.0,0.14813152]
[1772983483871,0.07423926,67214.0,67208.0,0.14813152]
[1772983484111,0.07423926,67214.0,67209.0,0.14813152]
[1772983484313,0.07423926,67214.0,67210.0,0.14813152]
[1772983484472,0.07423926,67214.0,67211.0,0.14813152]
[1772983484675,0.07423926,67214.0,67206.0,0.03019987]
[1772983484875,0.07423926,67214.0,67207.0,0.14816321]
[1772983485156,0.07423926,67214.0,67208.0,0.14816321]
[1772983485359,0.07423926,67214.0,67209.0,0.14816321]
[1772983485493,0.07423926,67214.0,67210.0,0.14816321]
[1772983485691,0.07423926,67214.0,67211.0,0.14816321]
[1772983485905,0.07423926,67214.0,67206.0,0.10459796]
[1772983486107,0.07423926,67214.0,67207.0,0.14820098]
[1772983486374,0.07423926,67214.0,67208.0,0.14820098]
[1772983486552,0.04215502,67216.0,67209.0,0.14820098]
[1772983486781,0.04215502,67216.0,67210.0,0.14820098]
[1772983486897,0.13075226,67223.0,67206.0,0.10488911]
[1772983486898,0.07438119,67222.0,67212.0,0.03049103]
[1772983487105,0.00148,67221.0,67214.0,0.03049103]
[1772983487309,0.00148,67221.0,67215.0,0.14820098]
[1772983487518,0.00148,67221.0,67214.0,0.03049103]
[1772983487519,0.00148,67221.0,67216.0,0.14820098]
[1772983487730,0.00148,67221.0,67217.0,0.14820098]
[1772983487934,0.00148,67221.0,67214.0,0.03049103]
[1772983488134,0.00148,67221.0,67215.0,0.14829488]
[1772983488373,0.00148,67221.0,67216.0,0.14829488]
[1772983488607,0.00148,67221.0,67217.0,0.14829488]
[1772983488810,0.00148,67221.0,67218.0,0.14829488]
[1772983489045,0.07460042,67225.0,67214.0,0.03049103]
[1772983489046,0.00148,67228.0,67219.0,0.14835256]
[1772983489250,0.00148,67227.0,67221.0,0.03058151]
[1772983489369,0.00148,67227.0,67222.0,0.14835256]
[1772983489571,0.00148,67227.0,67224.0,0.03058151]
[1772983489800,0.00148,67228.0,67226.0,0.03058151]
[1772983490082,0.00148,67228.0,67227.0,0.14835256]
[1772983490288,0.07459167,67230.0,67227.0,0.14835256]
[1772983490489,0.00148,67228.0,67226.0,0.03058151]
[1772983490671,0.00022001,67228.0,67227.0,0.14846355]
[1772983491088,0.00148,67229.0,67227.0,0.14846355]
[1772983491383,0.07585266,67229.0,67228.0,0.14846355]
[1772983491813,0.07585266,67229.0,67226.0,0.03058151]
[1772983491814,0.07585266,67229.0,67221.0,0.07438144]
[1772983491998,0.07585266,67229.0,67221.0,0.03097536]
[1772983492558,0.07585266,67229.0,67214.0,0.03118999]
[1772983492758,0.07585266,67229.0,67210.0,0.07439344]
[1772983492759,0.00042122,67225.0,67212.0,0.00148]
[1772983492947,0.13095347,67225.0,67212.0,0.00148]
[1772983493147,0.07437819,67224.0,67212.0,0.00148]
[1772983493392,0.00148,67223.0,67211.0,0.07439207]
[1772983493638,0.00148,67223.0,67207.0,0.20945535]
[1772983493830,0.00148,67223.0,67207.0,0.00011926]
[1772983493831,0.00102078,67219.0,67207.0,0.00011926]
[1772983493978,0.13155303,67219.0,67207.0,0.00011926]
[1772983494579,0.00148,67223.0,67207.0,0.00011926]
[1772983494817,0.00148,67222.0,67208.0,0.0314006]
[1772983494988,0.20491044,67224.0,67208.0,0.0314006]
[1772983495192,0.07438041,67222.0,67208.0,0.10579615]
[1772983495937,0.07438041,67222.0,67208.0,0.07439555]
[1772983496134,0.00148,67221.0,67211.0,0.0314006]
[1772983496336,0.07438041,67222.0,67211.0,0.0314006]
[1772983496542,0.00148,67221.0,67212.0,0.13066732]
[1772983496690,0.00148,67221.0,67213.0,0.03173719]
[1772983497475,0.07437819,67224.0,67216.0,0.03173719]
[1772983497476,0.00148,67224.0,67216.0,0.03173719]
[1772983497908,0.00022001,67225.0,67216.0,0.03173719]
[1772983498095,0.00170001,67225.0,67216.0,0.03173719]
[1772983499741,0.00020435,67222.0,67209.0,0.07587448]
[1772983499946,0.13053225,67221.0,67209.0,0.07587448]
[1772983500786,0.07437819,67224.0,67210.0,0.03187748]
[1772983501569,0.00148,67223.0,67210.0,0.03187748]
[1772983501771,0.07437819,67224.0,67211.0,0.07439258]
[1772983501995,0.07437819,67224.0,67212.0,0.03187748]
[1772983502176,0.07437819,67224.0,67211.0,0.07439258]
[1772983502177,0.07437819,67224.0,67213.0,0.03187748]
[1772983502382,0.00148,67223.0,67215.0,0.13066732]
[1772983502595,0.00148,67223.0,67216.0,0.03194361]
[1772983502781,0.07437819,67224.0,67216.0,0.03194361]
[1772983503683,0.07437819,67224.0,67211.0,0.07439258]
[1772983503883,0.07437819,67224.0,67209.0,0.07587258]
[1772983503884,0.13839794,67223.0,67209.0,0.07587477]
[1772983504133,0.13820922,67223.0,67210.0,0.03194361]
[1772983504291,0.00148,67223.0,67210.0,0.03194361]
[1772983505341,0.07437819,67224.0,67210.0,0.03194361]
[1772983505652,0.07437819,67224.0,67209.0,0.07587477]
[1772983505653,0.00148,67223.0,67214.0,0.03200715]
[1772983506289,0.07438041,67222.0,67214.0,0.03220715]
[1772983509400,0.07459759,67225.0,67217.0,0.13906104]
[1772983509542,0.07459759,67225.0,67218.0,0.03218526]
[1772983514846,0.03164058,67224.0,67214.0,0.00168]
[1772983514987,0.03164058,67224.0,67214.0,0.07458923]
[1772983516137,0.03164058,67224.0,67214.0,0.0002]
[1772983516338,0.0743793,67223.0,67214.0,0.0002]
[1772983522619,0.07459931,67223.0,67214.0,0.0002]
[1772983523166,0.00148,67222.0,67214.0,0.0002]
[1772983524505,0.07438151,67221.0,67214.0,0.0002]
[1772983530537,0.00022001,67228.0,67214.0,0.0002]
[1772983530739,0.07459439,67228.0,67217.0,0.13906104]
[1772983531056,0.07459439,67228.0,67219.0,0.03021069]
[1772983531489,0.00148,67227.0,67219.0,0.03021069]
[1772983532707,0.07437598,67226.0,67219.0,0.03021069]
[1772983537009,0.07437598,67226.0,67219.0,0.03041069]
[1772983537209,0.07459599,67226.0,67219.0,0.03041069]
[1772983540055,0.07459599,67226.0,67219.0,0.10479407]
[1772983540622,7e-07,67226.0,67220.0,0.03249894]
[1772983540824,0.07437738,67226.0,67220.0,0.03249894]
[1772983542675,0.07467098,67226.0,67220.0,0.03249894]
[1772983543243,0.07467098,67226.0,67219.0,0.0002]
[1772983544046,0.07467098,67226.0,67219.0,0.03269894]
[1772983545089,0.07467098,67226.0,67219.0,0.1070826]
[1772983546854,0.07467098,67226.0,67219.0,0.0002]
[1772983547060,0.07467098,67226.0,67220.0,0.03249894]
[1772983548805,0.07437668,67226.0,67220.0,0.03249894]
[1772983549015,0.07585598,67227.0,67220.0,0.03249894]
[1772983549213,0.07585598,67227.0,67221.0,0.03249894]
[1772983549214,0.07437668,67226.0,67221.0,0.03249894]
[1772983550046,0.00170001,67228.0,67221.0,0.03249894]
[1772983550222,0.07437598,67227.0,67221.0,0.03249894]
[1772983551908,0.07437598,67227.0,67222.0,0.03249894]
[1772983553202,0.07607488,67228.0,67222.0,0.03249894]
[1772983553407,0.00022001,67227.0,67222.0,0.03249894]
[1772983554026,0.07459584,67227.0,67222.0,0.03249894]
[1772983554989,0.07459584,67227.0,67209.0,0.07439399]
[1772983554990,0.14334824,67226.0,67209.0,0.07439399]
[1772983555118,0.14334824,67226.0,67201.0,0.29743436]
[1772983555119,0.12466255,67219.0,67207.0,0.07486617]
[1772983555327,0.00148,67218.0,67207.0,0.07486544]
[1772983555525,0.00148,67218.0,67207.0,0.00046926]
[1772983555932,0.00148,67218.0,67201.0,0.07460331]
[1772983555933,0.01870429,67214.0,67201.0,0.0002]
[1772983556167,0.12466255,67211.0,67201.0,0.07460358]
[1772983556359,0.07439147,67212.0,67201.0,0.07460358]
[1772983556360,0.00148,67210.0,67209.0,0.001]
[1772983556567,0.00148,67210.0,67209.0,0.03349894]
[1772983557102,0.00148,67210.0,67202.0,0.03249894]
[1772983557709,0.00148,67210.0,67201.0,0.0002]
[1772983558284,0.07439479,67209.0,67201.0,0.0002]
[1772983558687,0.07439479,67209.0,67201.0,0.03269894]
[1772983560099,0.07439479,67209.0,67202.0,0.07440254]
[1772983560502,0.00148,67214.0,67203.0,0.03249894]
[1772983560872,0.00148,67213.0,67203.0,0.03249894]
[1772983561391,0.0743892,67215.0,67203.0,0.03249894]
[1772983561596,0.00148,67214.0,67203.0,0.03249894]
[1772983562244,0.07439037,67213.0,67204.0,0.10689927]
[1772983563223,0.07587037,67214.0,67205.0,0.03249894]
[1772983564265,0.00148,67213.0,67205.0,0.10689815]
[1772983566125,0.13664767,67213.0,67202.0,0.07440252]
[1772983566334,0.13516767,67211.0,67201.0,0.07460365]
[1772983566512,0.13516767,67211.0,67201.0,0.0002]
[1772983566712,0.07439147,67212.0,67201.0,0.0002]
[1772983567074,0.13664767,67211.0,67201.0,0.0002]
[1772983567384,0.13664767,67211.0,67204.0,0.0002]
[1772983568579,0.07439369,67210.0,67204.0,0.0002]
[1772983570116,0.01910162,67208.0,67194.0,0.0002]
[1772983570240,0.01910162,67204.0,67194.0,0.0002]
[1772983570495,0.13516767,67202.0,67194.0,0.0002]
[1772983570683,0.07440365,67201.0,67194.0,0.0002]
[1772983571109,0.07440365,67201.0,67190.0,0.0002]
[1772983571489,0.20957132,67201.0,67190.0,0.0002]
[1772983571736,0.13516767,67200.0,67188.0,0.07441804]
[1772983572120,0.07440365,67201.0,67189.0,0.03317672]
[1772983573000,0.07440365,67201.0,67190.0,0.07441583]
[1772983573318,0.00148,67200.0,67191.0,0.03317672]
[1772983573532,0.00148,67200.0,67192.0,0.03317672]
[1772983573863,0.07440365,67201.0,67192.0,0.03317672]
[1772983574069,0.07440365,67201.0,67194.0,0.0002]
[1772983574070,0.00148,67200.0,67194.0,0.0002]
[1772983574286,0.07440365,67201.0,67195.0,0.03317672]
[1772983574493,0.00148,67200.0,67195.0,0.03317672]
[1772983574890,0.07588365,67201.0,67195.0,0.03317672]
[1772983576047,0.07588365,67201.0,67195.0,0.03357466]
[1772983577305,0.01877115,67199.0,67190.0,0.07456549]
[1772983577480,0.15433627,67199.0,67190.0,0.00015]
[1772983577860,0.13556512,67199.0,67190.0,0.00015]
[1772983578080,0.13556512,67199.0,67190.0,0.07456507]
[1772983578245,0.00039745,67199.0,67191.0,0.03317672]
[1772983580134,0.07440697,67198.0,67191.0,0.10759041]
[1772983580328,0.07440697,67198.0,67192.0,0.03317672]
[1772983580954,0.07440697,67198.0,67187.0,0.00595]
[1772983581167,0.13516767,67197.0,67187.0,0.00595]
[1772983581370,0.13516767,67197.0,67190.0,0.0002]
[1772983582211,0.07440919,67196.0,67190.0,0.0002]
[1772983582820,0.07440919,67196.0,67187.0,0.080369]
[1772983583242,0.00148,67195.0,67187.0,0.080369]
[1772983583624,0.00148,67195.0,67187.0,0.08036813]
[1772983583977,0.00148,67195.0,67188.0,0.03317672]
[1772983584181,0.00148,67195.0,67187.0,0.00595]
[1772983584182,0.07589126,67195.0,67187.0,0.00595]
[1772983584368,0.07441126,67195.0,67187.0,0.0803688]
[1772983585224,0.07441126,67195.0,67187.0,0.11354552]
[1772983585474,0.07441029,67196.0,67188.0,0.03317672]
[1772983586149,0.07441029,67196.0,67188.0,0.1075945]
[1772983587345,0.07441029,67196.0,67189.0,0.03317672]
[1772983587715,0.0748037,67199.0,67189.0,0.03317672]
[1772983587922,0.00148,67198.0,67189.0,0.03317672]
[1772983588329,0.07588724,67198.0,67191.0,0.03317672]
[1772983590539,0.07440476,67200.0,67192.0,0.03317672]
[1772983590746,0.07440476,67200.0,67192.0,0.03357417]
[1772983591217,0.07588143,67205.0,67193.0,0.03317672]
[1772983591418,0.00022001,67206.0,67195.0,0.03317672]
[1772983591716,0.00022001,67206.0,67197.0,0.03317672]
[1772983592283,0.07439204,67212.0,67198.0,0.20638664]
[1772983592486,0.07439204,67212.0,67200.0,0.03317672]
[1772983592487,0.00148,67212.0,67200.0,0.03317672]
[1772983595056,0.07587258,67212.0,67202.0,0.03317672]
[1772983595458,0.07439258,67212.0,67202.0,0.03317672]
[1772983595588,0.07587258,67212.0,67202.0,0.03317672]
[1772983596631,0.07609259,67212.0,67202.0,0.03317672]
[1772983596860,0.07609259,67212.0,67203.0,0.07440144]
[1772983597044,0.07609259,67212.0,67203.0,0.10757816]
[1772983597652,0.00170001,67212.0,67204.0,0.03317672]
[1772983597823,0.076092,67212.0,67204.0,0.03317672]
[1772983599992,0.074612,67212.0,67204.0,0.10757653]
[1772983600145,0.076092,67212.0,67204.0,0.10757653]
[1772983600353,0.166161,67212.0,67204.0,0.10757653]
[1772983600968,0.1660122,67212.0,67204.0,0.10757653]
[1772983602520,0.1645322,67212.0,67204.0,0.10757653]
[1772983602714,0.1660122,67212.0,67204.0,0.10757653]
[1772983603242,0.1660122,67212.0,67204.0,0.10770073]
[1772983603625,0.00148,67211.0,67204.0,0.10770073]
[1772983604015,0.1645322,67212.0,67205.0,0.07439851]
[1772983604016,0.1660122,67212.0,67205.0,0.07439851]
[1772983604333,0.1660122,67212.0,67206.0,0.03151406]
[1772983604546,0.1645322,67212.0,67206.0,0.03151406]
[1772983604755,0.1660122,67212.0,67206.0,0.03151406]
[1772983606136,0.1660122,67212.0,67206.0,0.10591149]
[1772983606709,0.1645322,67212.0,67206.0,0.10591149]
[1772983607084,0.1660122,67212.0,67206.0,0.10591149]
[1772983607223,0.1645322,67212.0,67206.0,0.10591149]
[1772983607413,0.1660122,67212.0,67206.0,0.10591149]
[1772983607622,0.09162021,67212.0,67207.0,0.03151406]
[1772983608255,0.09014021,67212.0,67207.0,0.03151406]
[1772983608656,0.07439026,67215.0,67207.0,0.03151406]
[1772983608657,0.00022001,67219.0,67207.0,0.03151406]
[1772983608857,0.00022001,67219.0,67206.0,0.07439743]
[1772983608858,0.00022001,67219.0,67208.0,0.03151406]
[1772983609052,0.00022001,67219.0,67209.0,0.03151406]
[1772983609653,0.00022001,67219.0,67211.0,0.03151406]
[1772983610488,0.00148,67223.0,67212.0,0.1294795]
[1772983610683,0.0004,67225.0,67212.0,0.1294795]
[1772983610684,0.00188,67225.0,67213.0,0.03151406]
[1772983611253,1e-08,67225.0,67214.0,0.1294795]
[1772983611463,0.00022001,67226.0,67215.0,0.03151406]
[1772983611902,0.0003392,67226.0,67216.0,0.07438705]
[1772983612079,0.0003392,67226.0,67217.0,0.03151406]
[1772983612989,0.07471529,67226.0,67217.0,0.03151406]
[1772983613372,0.12779273,67225.0,67216.0,0.07438705]
[1772983614171,0.12779273,67225.0,67216.0,0.10590111]
[1772983614769,0.07471529,67226.0,67216.0,0.07438705]
[1772983614990,0.07471529,67226.0,67217.0,0.03151406]
[1772983617205,0.07471529,67226.0,67218.0,0.07438483]
[1772983620577,0.07471529,67226.0,67217.0,0.10589889]
[1772983620578,0.12779273,67225.0,67213.0,0.07586705]
[1772983620801,0.12779273,67225.0,67214.0,0.03151406]
[1772983621547,0.12927273,67225.0,67214.0,0.03151406]
[1772983621745,0.12927273,67225.0,67213.0,0.07586705]
[1772983622038,0.12927273,67225.0,67213.0,0.07438705]
[1772983625384,0.07437819,67224.0,67213.0,0.10745527]
[1772983625745,0.07437819,67224.0,67207.0,0.0002]
[1772983625746,0.04919408,67223.0,67207.0,0.0002]
[1772983625949,0.07437819,67224.0,67207.0,0.0002]
[1772983625950,0.14913649,67219.0,67207.0,0.0002]
[1772983626169,0.13167128,67217.0,67207.0,0.0002]
[1772983626789,0.01741154,67216.0,67207.0,0.0002]
[1772983627011,0.13167128,67215.0,67207.0,0.0002]
[1772983627342,0.07438926,67214.0,67204.0,0.0001242]
[1772983628772,0.00148,67213.0,67204.0,0.0001242]
[1772983629672,0.07438926,67215.0,67205.0,0.03159317]
[1772983630022,0.00148,67214.0,67205.0,0.03159317]
[1772983630246,0.07586926,67215.0,67205.0,0.03159317]
[1772983631840,0.07586926,67215.0,67207.0,0.03159317]
[1772983632599,0.07438926,67215.0,67207.0,0.03159317]
[1772983632942,0.07608927,67215.0,67207.0,0.03159317]
[1772983633093,0.07460927,67215.0,67207.0,0.03159317]
[1772983634365,0.07460927,67215.0,67206.0,0.07439811]
[1772983637305,0.07460927,67215.0,67205.0,0.07459811]
[1772983637593,0.07460927,67215.0,67205.0,0.10619128]
[1772983638256,0.07460927,67215.0,67205.0,0.07459811]
[1772983638459,0.07460927,67215.0,67206.0,0.03159317]
[1772983639608,0.07460927,67215.0,67208.0,0.03159317]
[1772983641427,0.00022001,67215.0,67208.0,0.03159317]
[1772983641844,0.00022001,67215.0,67209.0,0.07439479]
[1772983642235,0.07460831,67215.0,67209.0,0.07439479]
[1772983642360,0.07460831,67215.0,67208.0,0.03159317]
[1772983642361,0.07460831,67215.0,67207.0,0.07439695]
[1772983643195,0.07445692,67215.0,67207.0,0.07439695]
[1772983643571,0.07445692,67215.0,67206.0,0.07439599]
[1772983644009,0.07445692,67215.0,67205.0,0.07459875]
[1772983644612,0.07430557,67215.0,67205.0,0.07459875]
[1772983644989,0.13167128,67214.0,67205.0,0.07459875]
[1772983645197,0.01691842,67211.0,67200.0,0.07500435]
[1772983645398,0.07430557,67215.0,67194.0,0.0016338]
[1772983645399,0.01691842,67207.0,67194.0,0.0016338]
[1772983645597,0.1485897,67206.0,67194.0,0.07604492]
[1772983645822,0.07439922,67205.0,67194.0,0.07604492]
[1772983646031,0.07439922,67205.0,67194.0,0.07456492]
[1772983646486,0.00148,67204.0,67195.0,0.03159317]
[1772983647107,0.00156865,67204.0,67195.0,0.03159317]
[1772983650297,0.07440144,67203.0,67196.0,0.07440919]
[1772983650505,0.07425005,67203.0,67196.0,0.07440919]
[1772983651132,0.07425005,67203.0,67194.0,0.07456492]
[1772983651838,0.07425005,67203.0,67193.0,0.0002]
[1772983652154,0.14846081,67202.0,67193.0,0.0002]
[1772983652303,0.07425005,67203.0,67193.0,0.0002]
[1772983652509,0.07425005,67203.0,67194.0,0.03159317]
[1772983654747,0.07425005,67203.0,67194.0,0.10600385]
[1772983656641,0.07410005,67203.0,67194.0,0.10600385]
[1772983657322,0.07596969,67204.0,67194.0,0.10600385]
[1772983657323,0.07448969,67204.0,67194.0,0.03259317]
[1772983657539,4e-07,67204.0,67194.0,0.03259317]
[1772983657743,0.07440086,67204.0,67194.0,0.03259317]
[1772983658310,4e-07,67204.0,67194.0,0.03259317]
[1772983658508,0.07439704,67207.0,67195.0,0.12085631]
[1772983658693,0.07439704,67207.0,67197.0,0.03118312]
[1772983658904,0.07439704,67207.0,67197.0,0.03266312]
[1772983659104,0.0743959,67208.0,67198.0,0.12085631]
[1772983659341,0.0743959,67208.0,67199.0,0.03118312]
[1772983659548,0.07439369,67210.0,67201.0,0.03118312]
[1772983659956,0.20426128,67210.0,67198.0,0.07440476]
[1772983660582,0.20426128,67210.0,67198.0,0.10558788]
[1772983661275,0.20426128,67210.0,67198.0,0.10706788]
[1772983664065,0.20456678,67210.0,67198.0,0.10706788]
[1772983664879,0.07469919,67210.0,67199.0,0.03118312]
[1772983665719,0.07465919,67210.0,67199.0,0.03118312]
[1772983666322,0.0748792,67210.0,67199.0,0.10558828]
[1772983670312,0.0748792,67210.0,67200.0,0.03118312]
[1772983670520,0.00148,67209.0,67200.0,0.03118312]
[1772983670943,0.0017855,67209.0,67200.0,0.03118312]
[1772983671935,0.0743959,67208.0,67201.0,0.10558677]
[1772983672140,0.0743959,67208.0,67201.0,0.03118312]
[1772983672452,0.0743959,67208.0,67200.0,0.03118312]
[1772983673044,0.0747014,67208.0,67200.0,0.03118312]
[1772983677250,0.07492141,67208.0,67200.0,0.03118312]
[1772983680376,0.07492141,67208.0,67199.0,0.07440516]
[1772983680571,0.07492141,67208.0,67198.0,0.07588489]
[1772983680776,0.12986759,67207.0,67198.0,0.07588489]
[1772983681029,0.13017309,67207.0,67198.0,0.07588489]
[1772983682226,0.13017309,67207.0,67198.0,0.07440489]
[1772983682425,0.07439811,67206.0,67200.0,0.07440476]
[1772983682805,0.07470292,67207.0,67200.0,0.07440476]
[1772983683005,0.07618292,67207.0,67201.0,0.03118312]
[1772983683530,0.07470292,67207.0,67201.0,0.03118312]
[1772983683717,0.07618292,67207.0,67201.0,0.03118312]
[1772983684492,0.07470292,67207.0,67201.0,0.03118312]
[1772983684796,0.07618292,67207.0,67201.0,0.1055866]
[1772983684992,0.07470292,67207.0,67201.0,0.03118312]
[1772983685213,0.07618292,67207.0,67201.0,0.03118312]
[1772983686239,0.07470292,67207.0,67201.0,0.10558651]
[1772983686442,0.07470292,67207.0,67202.0,0.0310866]
[1772983686613,0.0003055,67207.0,67203.0,0.0310866]
[1772983687049,0.00022001,67208.0,67203.0,0.0310866]
[1772983687245,0.00022001,67210.0,67203.0,0.0310866]
[1772983687246,0.00170001,67210.0,67203.0,0.0310866]
[1772983687455,0.00022001,67210.0,67203.0,0.0310866]
[1772983688766,0.00022001,67210.0,67204.0,0.07440033]
[1772983688948,0.00022001,67210.0,67205.0,0.03145425]
[1772983690670,0.07461421,67210.0,67205.0,0.03145425]
[1772983691088,0.07461421,67210.0,67205.0,0.10585347]
[1772983692546,0.07461421,67210.0,67200.0,0.10585873]
[1772983694111,0.07461421,67210.0,67201.0,0.0002]
[1772983694499,0.00022001,67210.0,67201.0,0.0002]
[1772983695099,0.00022001,67210.0,67202.0,0.03145425]
[1772983696224,0.07438947,67214.0,67202.0,0.03145425]
[1772983696468,0.07586947,67214.0,67202.0,0.03145425]
[1772983696680,0.07438947,67214.0,67204.0,0.03145425]
[1772983697055,0.07586947,67214.0,67204.0,0.03145425]
[1772983700352,0.07438947,67214.0,67205.0,0.07439922]
[1772983700532,0.07586947,67214.0,67205.0,0.07439922]
[1772983701167,0.07608948,67214.0,67205.0,0.07439922]
[1772983705017,0.07608948,67214.0,67204.0,0.07439982]
[1772983706573,0.07608948,67214.0,67200.0,0.07440463]
[1772983706814,0.03226318,67212.0,67201.0,0.07588343]
[1772983706990,0.03226318,67211.0,67201.0,0.07588343]
[1772983707323,0.10665687,67210.0,67201.0,0.07588343]
[1772983707704,0.10665687,67210.0,67201.0,0.07608343]
[1772983711312,0.07439369,67210.0,67201.0,0.07608343]
[1772983711647,0.07439369,67210.0,67201.0,0.07460343]
[1772983712272,0.07439369,67212.0,67201.0,0.07460343]
[1772983712994,0.07439369,67212.0,67201.0,0.0002]
[1772983713146,0.03226318,67210.0,67201.0,0.0002]
[1772983714346,0.07439479,67209.0,67201.0,0.0002]
[1772983715797,0.03226318,67206.0,67200.0,0.07588475]
[1772983716017,0.03226318,67206.0,67199.0,0.07460365]
[1772983716317,0.07439479,67209.0,67199.0,0.0002]
[1772983719776,0.07439479,67209.0,67199.0,0.02971197]
[1772983723405,0.0758737,67210.0,67200.0,0.07440476]
[1772983724334,0.03111112,67209.0,67200.0,0.07440476]
[1772983724660,0.03111112,67209.0,67200.0,0.07448706]
[1772983725532,0.0743959,67208.0,67200.0,0.07448706]
[1772983727424,0.0743959,67208.0,67200.0,0.07468706]
[1772983731676,0.10550702,67208.0,67200.0,0.07468706]
[1772983741034,0.10572703,67208.0,67200.0,0.07468706]
[1772983749003,0.10572703,67208.0,67194.0,0.001337]
[1772983749004,0.07461591,67208.0,67194.0,0.001337]
[1772983749209,0.07461591,67208.0,67187.0,0.00591]
[1772983749210,0.15041802,67202.0,67187.0,0.00591]
[1772983749389,0.00148,67201.0,67179.0,0.07604487]
[1772983749594,0.11961299,67200.0,67179.0,0.07456487]
[1772983749818,0.03080503,67197.0,67179.0,0.07456487]
[1772983750089,0.000137,67205.0,67180.0,0.14876317]
[1772983750321,0.03228503,67204.0,67184.0,0.02956896]
[1772983750497,0.03080503,67202.0,67185.0,0.11919421]
[1772983750881,0.03080503,67202.0,67184.0,0.02956896]
[1772983750882,0.03080503,67201.0,67184.0,0.02956896]
[1772983751210,0.03080503,67201.0,67181.0,0.12067421]
[1772983751211,0.03080503,67197.0,67183.0,0.07442347]
[1772983751386,0.11961299,67194.0,67179.0,0.07456487]
[1772983751611,0.03080503,67191.0,67179.0,0.07456487]
[1772983751810,0.03080503,67187.0,67179.0,0.000137]
[1772983752011,0.03080503,67185.0,67175.0,0.0004]
[1772983752215,0.03080503,67185.0,67175.0,0.07483211]
[1772983753041,0.07442248,67184.0,67175.0,0.07483211]
[1772983753391,0.10522751,67184.0,67175.0,0.07483211]
[1772983754080,0.10522751,67184.0,67175.0,0.07511411]
[1772983754081,0.03080503,67183.0,67175.0,0.07511411]
[1772983754381,0.03080503,67183.0,67179.0,0.0002]
[1772983754761,0.03080503,67183.0,67179.0,0.0003085]
[1772983755169,0.07442469,67182.0,67179.0,0.0003085]
[1772983755420,0.03080503,67181.0,67179.0,0.0003085]
[1772983757495,0.07442248,67184.0,67177.0,0.0001735]
[1772983757670,0.07590248,67184.0,67177.0,0.0001735]
[1772983758970,0.03080503,67183.0,67177.0,0.0001735]
[1772983759377,0.07590248,67184.0,67165.0,0.0002]
[1772983759378,0.11961299,67180.0,67165.0,0.0002]
[1772983759642,0.11961299,67177.0,67168.0,0.00148]
[1772983759771,0.11961299,67176.0,67165.0,0.0002]
[1772983759970,0.03080503,67175.0,67165.0,0.0002]
[1772983760280,0.03080503,67174.0,67162.0,0.0744468]
[1772983760485,0.03080503,67173.0,67162.0,0.0744468]
[1772983761082,0.03080503,67173.0,67160.0,0.08019688]
[1772983761307,0.03080503,67173.0,67158.0,0.07462417]
[1772983761308,0.11961299,67170.0,67158.0,0.07462413]
[1772983761625,0.07444242,67166.0,67158.0,0.07462413]
[1772983761822,0.03080503,67165.0,67158.0,0.0001735]
[1772983762048,0.07429242,67166.0,67135.0,0.25064121]
[1772983762049,0.12109299,67164.0,67135.0,0.25064121]
[1772983762252,0.04919949,67160.0,67139.0,0.02956896]
[1772983762451,0.04919949,67160.0,67135.0,0.07447569]
[1772983762452,0.11961299,67155.0,67135.0,0.07447569]
[1772983762616,0.03080503,67152.0,67136.0,0.00148]
[1772983763039,0.03080503,67150.0,67136.0,0.00148]
[1772983763222,0.03080503,67150.0,67136.0,0.00039745]
[1772983763582,0.03080503,67149.0,67136.0,0.00039745]
[1772983763793,0.03080503,67149.0,67133.0,0.0802279]
[1772983763794,0.11961299,67145.0,67133.0,0.00575]
[1772983763992,0.03080503,67142.0,67130.0,0.07648193]
[1772983764199,0.19555537,67148.0,67130.0,0.1061702]
[1772983764486,0.03080503,67147.0,67130.0,0.1061702]
[1772983764686,0.11961299,67147.0,67130.0,0.1061702]
[1772983764860,0.03080503,67146.0,67130.0,0.1061702]
[1772983765065,0.03080503,67144.0,67130.0,0.1061702]
[1772983765294,0.07446084,67150.0,67133.0,0.02956896]
[1772983765471,0.00148,67146.0,67135.0,0.11919421]
[1772983765673,0.0744657,67145.0,67137.0,0.07447458]
[1772983767108,0.0744657,67145.0,67133.0,0.00148]
[1772983767109,0.03080503,67144.0,67133.0,0.00148]
[1772983767313,0.03080503,67141.0,67133.0,0.00148]
[1772983767507,0.0744657,67145.0,67133.0,0.07447843]
[1772983767672,0.0759471,67144.0,67133.0,0.10404739]
[1772983767873,0.0759471,67144.0,67137.0,0.0002]
[1772983768275,0.07445966,67151.0,67137.0,0.0002]
[1772983768478,0.00148,67151.0,67138.0,0.11919421]
[1772983768817,0.00148,67150.0,67139.0,0.02956896]
[1772983769578,0.00144,67150.0,67139.0,0.02956896]
[1772983770597,0.07443402,67174.0,67140.0,0.07447125]
[1772983770818,0.00148,67159.0,67143.0,0.11919421]
[1772983771017,0.00148,67159.0,67145.0,0.02956896]
[1772983771279,0.00148,67158.0,67145.0,0.02956896]
[1772983771479,0.00575,67160.0,67147.0,0.11919421]
[1772983771694,0.00575,67160.0,67149.0,0.11919421]